[Event "*** Titled Tuesday 3|2 Blitz"]
[Site "Chess.com"]
[Date "2015.08.04"]
[Round "3"]
[White "mat_kolosowski"]
[Black "petrpalachev"]
[Result "0-1"]
[WhiteElo "2480"]
[BlackElo "2366"]
[TimeControl "180+2"]
[EndTime "12:08:21 PDT"]
[Termination "petrpalachev won by resignation"]

1. d4 {[%clk 0:03:01.9]} 1... Nf6 {[%clk 0:03:00.8]} 2. c4 {[%clk 0:03:03.5]}
2... e6 {[%clk 0:03:02.1]} 3. g3 {[%clk 0:03:05.1]} 3... d5 {[%clk 0:03:02.4]}
4. Nf3 {[%clk 0:03:06.5]} 4... Bb4+ {[%clk 0:03:02.3]} 5. Bd2 {[%clk 0:03:07.4]}
5... Be7 {[%clk 0:03:03.7]} 6. Bg2 {[%clk 0:03:09.1]} 6... O-O {[%clk
0:03:05.2]} 7. O-O {[%clk 0:03:11]} 7... c6 {[%clk 0:03:06.7]} 8. Qc2 {[%clk
0:03:12.7]} 8... Nbd7 {[%clk 0:03:07.4]} 9. Rd1 {[%clk 0:03:13.8]} 9... b6
{[%clk 0:02:57.1]} 10. Bf4 {[%clk 0:03:14.3]} 10... Bb7 {[%clk 0:02:48.6]} 11.
Nc3 {[%clk 0:03:15.1]} 11... dxc4 {[%clk 0:02:48.2]} 12. Nd2 {[%clk 0:03:16.3]}
12... Nd5 {[%clk 0:02:36.6]} 13. Nxc4 {[%clk 0:03:17.1]} 13... Nxf4 {[%clk
0:02:36.8]} 14. gxf4 {[%clk 0:03:19]} 14... Qc7 {[%clk 0:02:28.9]} 15. e3 {[%clk
0:03:20]} 15... Rad8 {[%clk 0:02:24.4]} 16. Rac1 {[%clk 0:03:21.1]} 16... c5
{[%clk 0:02:18.6]} 17. d5 {[%clk 0:03:22]} 17... exd5 {[%clk 0:02:19.1]} 18.
Nxd5 {[%clk 0:03:23.1]} 18... Bxd5 {[%clk 0:02:20.3]} 19. Rxd5 {[%clk
0:03:23.6]} 19... Nf6 {[%clk 0:02:20.7]} 20. Rg5 {[%clk 0:03:23.7]} 20... b5
{[%clk 0:01:42.4]} 21. Ne5 {[%clk 0:03:22.9]} 21... Nd7 {[%clk 0:01:35]} 22. Rh5
{[%clk 0:03:08.8]} 22... g6 {[%clk 0:01:35.8]} 23. Nc6 {[%clk 0:03:09.5]} 23...
gxh5 {[%clk 0:01:18.3]} 24. Nxe7+ {[%clk 0:03:09.6]} 24... Kh8 {[%clk
0:01:18.3]} 25. Qf5 {[%clk 0:03:09.5]} 25... Qd6 {[%clk 0:01:04.4]} 26. Nd5
{[%clk 0:02:50.9]} 26... Qg6 {[%clk 0:01:01.4]} 27. Qh3 {[%clk 0:02:43.3]} 27...
Qg4 {[%clk 0:01:01]} 28. Kh1 {[%clk 0:02:41.3]} 28... c4 {[%clk 0:00:53]} 29.
Nc3 {[%clk 0:02:37.5]} 29... a6 {[%clk 0:00:41.3]} 30. Ne4 {[%clk 0:02:38.7]}
30... Nb6 {[%clk 0:00:32.5]} 31. Rg1 {[%clk 0:02:22.3]} 31... Rd1 {[%clk
0:00:21.8]} 32. Bf1 {[%clk 0:01:52.3]} 32... Qxh3 {[%clk 0:00:18.2]} 33. Bxh3
{[%clk 0:01:53.2]} 33... Rxg1+ {[%clk 0:00:19.7]} 34. Kxg1 {[%clk 0:01:55.1]}
34... Na4 {[%clk 0:00:20.2]} 35. b3 {[%clk 0:01:54.4]} 35... cxb3 {[%clk
0:00:21]} 36. axb3 {[%clk 0:01:56.3]} 36... Nb6 {[%clk 0:00:16.5]} 37. Bf1
{[%clk 0:01:53.8]} 37... Rc8 {[%clk 0:00:10.2]} 38. Kg2 {[%clk 0:01:49.6]} 38...
Kg7 {[%clk 0:00:08.8]} 39. Be2 {[%clk 0:01:50.1]} 39... h4 {[%clk 0:00:05.4]}
40. f5 {[%clk 0:01:49]} 40... f6 {[%clk 0:00:05.9]} 41. Kf3 {[%clk 0:01:46.9]}
41... Rc2 {[%clk 0:00:06.3]} 42. Bd3 {[%clk 0:01:39.9]} 42... Rb2 {[%clk
0:00:07.1]} 43. Nc5 {[%clk 0:01:41.1]} 43... Nd5 {[%clk 0:00:03.7]} 44. Be4
{[%clk 0:01:35.3]} 44... Nc3 {[%clk 0:00:04.3]} 45. Bc6 {[%clk 0:01:06.4]} 45...
a5 {[%clk 0:00:05.5]} 46. e4 {[%clk 0:01:07]} 46... Nd1 {[%clk 0:00:04.3]} 47.
Bxb5 {[%clk 0:01:01.5]} 47... Rxf2+ {[%clk 0:00:04.9]} 48. Kg4 {[%clk
0:01:02.7]} 48... Rc2 {[%clk 0:00:05.8]} 49. Ne6+ {[%clk 0:01:03.3]} 49... Kf7
{[%clk 0:00:05.7]} 50. Bc4 {[%clk 0:01:04.5]} 50... Ke7 {[%clk 0:00:06.7]} 51.
Kxh4 {[%clk 0:01:02.7]} 51... Ne3 {[%clk 0:00:07.3]} 52. Bb5 {[%clk 0:01:00.6]}
52... Rxh2+ {[%clk 0:00:08.3]} 53. Kg3 {[%clk 0:01:01.9]} 53... Rb2 {[%clk
0:00:09.9]} 54. Ba4 {[%clk 0:01:02.6]} 54... Nd1 {[%clk 0:00:09.4]} 55. Nd4
{[%clk 0:01:02.3]} 55... Nc3 {[%clk 0:00:09.1]} 56. Bc6 {[%clk 0:01:03.3]} 56...
Kd6 {[%clk 0:00:09.2]} 57. Bb7 {[%clk 0:01:00.9]} 57... Ne2+ {[%clk 0:00:08.6]}
58. Nxe2 {[%clk 0:01:00.3]} 58... Rxe2 {[%clk 0:00:10.5]} 59. Bd5 {[%clk
0:01:01.7]} 59... Ke5 {[%clk 0:00:11]} 60. Kg4 {[%clk 0:00:59.9]} 60... Rxe4+
{[%clk 0:00:11.7]} 0-1

[Event "*** Titled Tuesday 3|2 Blitz"]
[Site "Chess.com"]
[Date "2015.08.04"]
[Round "3"]
[White "GMHess"]
[Black "aripov96"]
[Result "1-0"]
[WhiteElo "2529"]
[BlackElo "2234"]
[TimeControl "180+2"]
[EndTime "12:08:22 PDT"]
[Termination "GMHess won by resignation"]

1. c3 {[%clk 0:03:01.9]} 1... e5 {[%clk 0:02:59]} 2. d4 {[%clk 0:03:02.9]} 2...
exd4 {[%clk 0:02:58.1]} 3. cxd4 {[%clk 0:03:04.8]} 3... d5 {[%clk 0:02:59.5]} 4.
Nf3 {[%clk 0:03:04.7]} 4... Nf6 {[%clk 0:03:00.6]} 5. g3 {[%clk 0:03:06.2]} 5...
Bf5 {[%clk 0:02:58.4]} 6. Bg2 {[%clk 0:03:07.3]} 6... c6 {[%clk 0:02:58.9]} 7.
O-O {[%clk 0:03:08.6]} 7... Bd6 {[%clk 0:03:00.2]} 8. Nc3 {[%clk 0:03:09.1]}
8... O-O {[%clk 0:03:01.1]} 9. Ne5 {[%clk 0:03:10.7]} 9... Nbd7 {[%clk
0:03:00.3]} 10. f4 {[%clk 0:03:08.4]} 10... Qe7 {[%clk 0:02:49.3]} 11. h3 {[%clk
0:03:06.2]} 11... h6 {[%clk 0:02:41.5]} 12. g4 {[%clk 0:03:06.2]} 12... Bh7
{[%clk 0:02:42.6]} 13. e3 {[%clk 0:03:02.1]} 13... Ne4 {[%clk 0:02:41]} 14. Nxe4
{[%clk 0:03:02.9]} 14... Bxe4 {[%clk 0:02:38.1]} 15. Bxe4 {[%clk 0:03:03.3]}
15... dxe4 {[%clk 0:02:39.5]} 16. Qb3 {[%clk 0:03:01.4]} 16... Bxe5 {[%clk
0:02:25.5]} 17. fxe5 {[%clk 0:03:01]} 17... Nb6 {[%clk 0:02:23.3]} 18. Bd2
{[%clk 0:02:57.3]} 18... Nd5 {[%clk 0:02:20]} 19. a3 {[%clk 0:02:38.7]} 19... h5
{[%clk 0:02:06.6]} 20. Qd1 {[%clk 0:02:25.8]} 20... Qg5 {[%clk 0:02:06.7]} 21.
Rf5 {[%clk 0:02:21.1]} 21... Qh4 {[%clk 0:01:54.5]} 22. Kg2 {[%clk 0:02:19.7]}
22... hxg4 {[%clk 0:01:53.2]} 23. hxg4 {[%clk 0:02:18.7]} 23... g6 {[%clk
0:01:52.8]} 24. Rf2 {[%clk 0:01:58.2]} 24... Kg7 {[%clk 0:01:48.8]} 25. Rf1
{[%clk 0:01:38.8]} 25... Rh8 {[%clk 0:01:44.2]} 26. Rh1 {[%clk 0:01:37.6]} 26...
Qxh1+ {[%clk 0:01:19.8]} 27. Qxh1 {[%clk 0:01:39.5]} 27... Rxh1 {[%clk
0:01:20.2]} 28. Rxh1 {[%clk 0:01:41.4]} 28... Rh8 {[%clk 0:01:19.7]} 29. Rc1
{[%clk 0:01:39]} 29... f6 {[%clk 0:01:13.3]} 30. exf6+ {[%clk 0:01:35.7]} 30...
Kxf6 {[%clk 0:01:14.3]} 31. Kg3 {[%clk 0:01:30.6]} 31... Kg5 {[%clk 0:01:11.2]}
32. Rf1 {[%clk 0:01:26.9]} 32... Rh4 {[%clk 0:01:10.9]} 33. Rf7 {[%clk
0:01:25.5]} 33... Rxg4+ {[%clk 0:01:12]} 34. Kf2 {[%clk 0:01:24.4]} 34... b6
{[%clk 0:00:51]} 35. Rxa7 {[%clk 0:01:19.4]} 35... Rh4 {[%clk 0:00:52.1]} 36.
Ra8 {[%clk 0:01:12.4]} 36... Rh2+ {[%clk 0:00:52.9]} 37. Ke1 {[%clk 0:01:13.2]}
37... Rh1+ {[%clk 0:00:47]} 38. Ke2 {[%clk 0:01:14.3]} 38... Rh2+ {[%clk
0:00:48]} 39. Kd1 {[%clk 0:01:15.8]} 39... Kg4 {[%clk 0:00:45.8]} 40. Rf8 {[%clk
0:00:57.5]} 40... g5 {[%clk 0:00:42.4]} 41. b4 {[%clk 0:00:57.3]} 41... b5
{[%clk 0:00:41]} 42. Rc8 {[%clk 0:00:40.5]} 42... Rh3 {[%clk 0:00:27.4]} 43. Ke2
{[%clk 0:00:31.6]} 43... Rh2+ {[%clk 0:00:28.2]} 44. Ke1 {[%clk 0:00:30.3]}
44... Rh3 {[%clk 0:00:27.5]} 45. Rxc6 {[%clk 0:00:28.8]} 45... Nxe3 {[%clk
0:00:28]} 46. Rc5 {[%clk 0:00:27.4]} 46... Nf5 {[%clk 0:00:21.1]} 47. Re5 {[%clk
0:00:16.2]} 47... e3 {[%clk 0:00:21.6]} 48. Bc3 {[%clk 0:00:16]} 48... Kf4
{[%clk 0:00:18.4]} 49. Ke2 {[%clk 0:00:16.7]} 49... Rh2+ {[%clk 0:00:19.3]} 50.
Kd3 {[%clk 0:00:17.3]} 50... g4 {[%clk 0:00:19.8]} 51. Re8 {[%clk 0:00:15.3]}
51... g3 {[%clk 0:00:20.8]} 52. d5 {[%clk 0:00:16.6]} 52... g2 {[%clk
0:00:17.6]} 53. Be5+ {[%clk 0:00:16.7]} 53... Kf3 {[%clk 0:00:15.1]} 54. Bxh2
{[%clk 0:00:18.6]} 54... e2 {[%clk 0:00:12.2]} 55. Rxe2 {[%clk 0:00:18.7]} 1-0

[Event "*** Titled Tuesday 3|2 Blitz"]
[Site "Chess.com"]
[Date "2015.08.04"]
[Round "3"]
[White "lexiel"]
[Black "Colombiano07"]
[Result "1-0"]
[WhiteElo "2285"]
[BlackElo "1971"]
[TimeControl "180+2"]
[EndTime "12:08:32 PDT"]
[Termination "lexiel won by resignation"]

1. d4 {[%clk 0:02:59.7]} 1... d5 {[%clk 0:03:00.4]} 2. Nc3 {[%clk 0:03:00.1]}
2... Bf5 {[%clk 0:03:00.9]} 3. f3 {[%clk 0:02:58.3]} 3... Nf6 {[%clk 0:03:00.6]}
4. g4 {[%clk 0:02:53.2]} 4... Bg6 {[%clk 0:03:01.6]} 5. h4 {[%clk 0:02:52.6]}
5... h6 {[%clk 0:03:01.5]} 6. h5 {[%clk 0:02:51.3]} 6... Bh7 {[%clk 0:03:02.2]}
7. Bf4 {[%clk 0:02:52]} 7... e6 {[%clk 0:03:02.6]} 8. Nb5 {[%clk 0:02:45.5]}
8... Bd6 {[%clk 0:03:00.8]} 9. Nxd6+ {[%clk 0:02:43]} 9... cxd6 {[%clk
0:03:02.7]} 10. e3 {[%clk 0:02:43.9]} 10... Nc6 {[%clk 0:03:01.7]} 11. c3 {[%clk
0:02:39.9]} 11... e5 {[%clk 0:02:58.9]} 12. Bg3 {[%clk 0:02:37.6]} 12... O-O
{[%clk 0:02:59.1]} 13. Kf2 {[%clk 0:02:15.2]} 13... Re8 {[%clk 0:02:57.9]} 14.
Bh4 {[%clk 0:01:55]} 14... e4 {[%clk 0:02:56.8]} 15. f4 {[%clk 0:01:54.2]} 15...
Qb6 {[%clk 0:02:54.8]} 16. Rb1 {[%clk 0:01:51.9]} 16... Rac8 {[%clk 0:02:47.4]}
17. Bxf6 {[%clk 0:01:48.2]} 17... gxf6 {[%clk 0:02:48.2]} 18. Ne2 {[%clk
0:01:48.5]} 18... Kh8 {[%clk 0:02:48.4]} 19. Ng3 {[%clk 0:01:48.9]} 19... Rg8
{[%clk 0:02:47.5]} 20. Be2 {[%clk 0:01:49.9]} 20... Ne7 {[%clk 0:02:46.7]} 21.
Qb3 {[%clk 0:01:43]} 21... Qxb3 {[%clk 0:02:40.4]} 22. axb3 {[%clk 0:01:43.8]}
22... f5 {[%clk 0:02:40.2]} 23. Rh4 {[%clk 0:01:29]} 23... Rg7 {[%clk
0:02:40.2]} 24. Nxf5 {[%clk 0:01:12.2]} 24... Bxf5 {[%clk 0:02:38]} 25. gxf5
{[%clk 0:01:09.7]} 25... Nxf5 {[%clk 0:02:39.9]} 26. Rg4 {[%clk 0:01:10.6]}
26... Rcg8 {[%clk 0:02:39]} 27. Rbg1 {[%clk 0:01:12]} 27... Kh7 {[%clk
0:02:14.1]} 28. Rxg7+ {[%clk 0:01:03.6]} 28... Rxg7 {[%clk 0:02:16]} 29. Bg4
{[%clk 0:01:02.9]} 29... Ne7 {[%clk 0:02:03.1]} 30. Bd7 {[%clk 0:00:52.9]} 30...
Rxg1 {[%clk 0:02:01.2]} 31. Kxg1 {[%clk 0:00:53.8]} 31... Ng8 {[%clk 0:01:58.1]}
32. Bc8 {[%clk 0:00:47.7]} 32... b6 {[%clk 0:01:57.3]} 33. Bb7 {[%clk
0:00:47.8]} 33... Nf6 {[%clk 0:01:58.9]} 34. Kf2 {[%clk 0:00:47.4]} 34... Kg7
{[%clk 0:01:58.2]} 35. c4 {[%clk 0:00:39.9]} 35... Kf8 {[%clk 0:01:29.2]} 36.
Bxd5 {[%clk 0:00:26.5]} 36... Nxd5 {[%clk 0:01:29.6]} 37. cxd5 {[%clk
0:00:28.4]} 37... Ke7 {[%clk 0:01:18.7]} 38. b4 {[%clk 0:00:18.9]} 38... a6
{[%clk 0:01:16.7]} 39. Ke2 {[%clk 0:00:19.3]} 39... Kf6 {[%clk 0:01:11.2]} 40.
Kf2 {[%clk 0:00:20.5]} 40... Ke7 {[%clk 0:01:09.1]} 41. Kg3 {[%clk 0:00:21.6]}
41... f5 {[%clk 0:01:06.9]} 42. b5 {[%clk 0:00:21.4]} 42... axb5 {[%clk
0:01:06]} 43. Kf2 {[%clk 0:00:16.7]} 43... Kd7 {[%clk 0:01:07.7]} 44. Ke2 {[%clk
0:00:17.4]} 44... Kc7 {[%clk 0:01:09.6]} 45. Kd2 {[%clk 0:00:18.5]} 45... Kb7
{[%clk 0:01:11.5]} 46. Kc3 {[%clk 0:00:19.5]} 46... Ka6 {[%clk 0:01:13.4]} 47.
Kb4 {[%clk 0:00:20.7]} 47... Ka7 {[%clk 0:00:26.9]} 48. Kxb5 {[%clk 0:00:20.8]}
48... Kb7 {[%clk 0:00:28.3]} 49. b4 {[%clk 0:00:16.3]} 49... Kc7 {[%clk
0:00:28.1]} 50. Ka6 {[%clk 0:00:17.3]} 50... b5 {[%clk 0:00:24.8]} 51. Kxb5
{[%clk 0:00:16.9]} 51... Kb7 {[%clk 0:00:25.4]} 52. Ka5 {[%clk 0:00:17.2]} 52...
Ka7 {[%clk 0:00:26.1]} 53. b5 {[%clk 0:00:18.2]} 53... Ka8 {[%clk 0:00:22.1]}
54. Kb6 {[%clk 0:00:18.4]} 54... Kb8 {[%clk 0:00:23]} 55. Kc6 {[%clk 0:00:19.4]}
1-0

[Event "*** Titled Tuesday 3|2 Blitz"]
[Site "Chess.com"]
[Date "2015.08.04"]
[Round "3"]
[White "DanielNaroditsky"]
[Black "1stSecond"]
[Result "0-1"]
[WhiteElo "2508"]
[BlackElo "2360"]
[TimeControl "180+2"]
[EndTime "12:08:44 PDT"]
[Termination "1stSecond won by resignation"]

1. d4 {[%clk 0:03:01.9]} 1... Nf6 {[%clk 0:03:00.7]} 2. c4 {[%clk 0:02:58.2]}
2... g6 {[%clk 0:03:02.1]} 3. Nc3 {[%clk 0:02:59.3]} 3... c5 {[%clk 0:03:03.5]}
4. d5 {[%clk 0:02:59.3]} 4... a6 {[%clk 0:03:04.2]} 5. e4 {[%clk 0:02:58.7]}
5... d6 {[%clk 0:03:05.3]} 6. Nf3 {[%clk 0:02:56.8]} 6... Bg7 {[%clk 0:03:06.7]}
7. Be2 {[%clk 0:02:57.5]} 7... b5 {[%clk 0:03:05.2]} 8. cxb5 {[%clk 0:02:58.4]}
8... axb5 {[%clk 0:03:07.1]} 9. Bxb5+ {[%clk 0:02:59]} 9... Bd7 {[%clk
0:03:07.7]} 10. Be2 {[%clk 0:02:57.4]} 10... Qa5 {[%clk 0:03:06.8]} 11. O-O
{[%clk 0:02:58]} 11... O-O {[%clk 0:03:07.6]} 12. Nd2 {[%clk 0:02:58.2]} 12...
Na6 {[%clk 0:03:04.5]} 13. Nc4 {[%clk 0:02:58.6]} 13... Qc7 {[%clk 0:03:05.5]}
14. f4 {[%clk 0:02:54.6]} 14... Rfb8 {[%clk 0:03:06.1]} 15. e5 {[%clk
0:02:50.7]} 15... Ne8 {[%clk 0:03:06]} 16. b3 {[%clk 0:02:43.5]} 16... dxe5
{[%clk 0:02:59.7]} 17. fxe5 {[%clk 0:02:44.1]} 17... Bxe5 {[%clk 0:03:01.6]} 18.
Nxe5 {[%clk 0:02:42.6]} 18... Qxe5 {[%clk 0:03:03.5]} 19. Bb2 {[%clk 0:02:39.5]}
19... Nd6 {[%clk 0:03:01.2]} 20. Kh1 {[%clk 0:02:27.8]} 20... c4 {[%clk
0:03:01.9]} 21. Qd2 {[%clk 0:02:18.8]} 21... Nc5 {[%clk 0:02:58.1]} 22. Na4
{[%clk 0:02:00]} 22... Nce4 {[%clk 0:02:58.7]} 23. Qc1 {[%clk 0:01:20.4]} 23...
Qxd5 {[%clk 0:02:45.8]} 24. Nc3 {[%clk 0:01:19]} 24... Qa5 {[%clk 0:02:23.5]}
25. Nxe4 {[%clk 0:01:17.2]} 25... Nxe4 {[%clk 0:02:25.4]} 26. Qxc4 {[%clk
0:01:18.9]} 26... Bf5 {[%clk 0:02:10.2]} 27. Qd4 {[%clk 0:01:07.7]} 27... f6
{[%clk 0:02:07.7]} 28. Bc4+ {[%clk 0:01:04.7]} 28... Kg7 {[%clk 0:02:08.2]} 29.
g4 {[%clk 0:00:59.9]} 29... Rd8 {[%clk 0:02:08.9]} 30. Qe3 {[%clk 0:01:00.8]}
30... Rd2 {[%clk 0:01:36.1]} 31. gxf5 {[%clk 0:00:56.7]} 31... Rxb2 {[%clk
0:01:36.1]} 32. Qxe4 {[%clk 0:00:57]} 32... Qd2 {[%clk 0:01:37.3]} 33. Qxe7+
{[%clk 0:00:44.5]} 33... Kh6 {[%clk 0:01:38]} 34. Qe2 {[%clk 0:00:46.2]} 34...
Qxe2 {[%clk 0:01:39.5]} 35. Bxe2 {[%clk 0:00:47.6]} 35... Rxe2 {[%clk 0:01:41]}
36. fxg6 {[%clk 0:00:49.3]} 36... Kxg6 {[%clk 0:01:42.2]} 37. a4 {[%clk
0:00:46.9]} 37... f5 {[%clk 0:01:32.3]} 38. a5 {[%clk 0:00:46.6]} 38... Rb2
{[%clk 0:01:31.4]} 39. Rf3 {[%clk 0:00:41]} 39... Kg5 {[%clk 0:01:32.4]} 40. a6
{[%clk 0:00:40.6]} 40... Kg4 {[%clk 0:01:32.3]} 41. Rg3+ {[%clk 0:00:40.9]}
41... Kh4 {[%clk 0:01:25.9]} 42. a7 {[%clk 0:00:42.2]} 42... f4 {[%clk
0:01:25.5]} 43. Rc3 {[%clk 0:00:36.2]} 43... Kg4 {[%clk 0:01:23.5]} 44. Rg1+
{[%clk 0:00:36.4]} 44... Kf5 {[%clk 0:01:21.3]} 45. Rg7 {[%clk 0:00:37.8]} 45...
Rd8 {[%clk 0:01:18]} 46. Rg1 {[%clk 0:00:30.5]} 46... Ra2 {[%clk 0:01:18.2]} 47.
Rc5+ {[%clk 0:00:23.1]} 47... Ke4 {[%clk 0:01:18.2]} 48. Rc4+ {[%clk 0:00:24.5]}
48... Kf5 {[%clk 0:01:14.9]} 49. Rf1 {[%clk 0:00:24.4]} 49... Rxa7 {[%clk
0:01:13.2]} 50. Rcxf4+ {[%clk 0:00:25.6]} 50... Kg5 {[%clk 0:01:14.8]} 51. R4f3
{[%clk 0:00:25.9]} 51... Rd2 {[%clk 0:01:12.4]} 52. Rg3+ {[%clk 0:00:27.2]}
52... Kh6 {[%clk 0:01:13.5]} 53. Rfg1 {[%clk 0:00:26.8]} 53... Ra5 {[%clk
0:01:12.9]} 54. Rh3+ {[%clk 0:00:26.3]} 54... Rh5 {[%clk 0:01:14.3]} 55. Rxh5+
{[%clk 0:00:27.9]} 55... Kxh5 {[%clk 0:01:16.2]} 56. Rb1 {[%clk 0:00:29.7]}
56... Kg6 {[%clk 0:01:13.2]} 57. b4 {[%clk 0:00:29.3]} 57... Rd6 {[%clk
0:01:07.8]} 58. b5 {[%clk 0:00:30.6]} 58... Rb6 {[%clk 0:01:08.8]} 59. Kg2
{[%clk 0:00:32]} 59... Kf5 {[%clk 0:01:09.9]} 60. Kf3 {[%clk 0:00:33.2]} 60...
Ke5 {[%clk 0:01:11]} 61. Kg4 {[%clk 0:00:34.3]} 61... Kd4 {[%clk 0:01:07.7]} 62.
h4 {[%clk 0:00:28.3]} 62... Kc3 {[%clk 0:01:07.8]} 63. Kg5 {[%clk 0:00:24.1]}
63... Kc2 {[%clk 0:01:08.7]} 64. Rg1 {[%clk 0:00:24.3]} 64... Rg6+ {[%clk
0:01:08.4]} 65. Kh5 {[%clk 0:00:24.9]} 65... Rxg1 {[%clk 0:01:10.3]} 66. b6
{[%clk 0:00:26.4]} 66... Rg6 {[%clk 0:01:06.3]} 67. b7 {[%clk 0:00:26.3]} 67...
Rb6 {[%clk 0:01:07.8]} 0-1

[Event "*** Titled Tuesday 3|2 Blitz"]
[Site "Chess.com"]
[Date "2015.08.04"]
[Round "3"]
[White "ViktoriaGloriam"]
[Black "hermionegrangermagic"]
[Result "1-0"]
[WhiteElo "2171"]
[BlackElo "1968"]
[TimeControl "180+2"]
[EndTime "12:09:01 PDT"]
[Termination "ViktoriaGloriam won by checkmate"]

1. e4 {[%clk 0:03:01.9]} 1... e5 {[%clk 0:02:59.5]} 2. Nf3 {[%clk 0:03:01.9]}
2... Nc6 {[%clk 0:03:00.2]} 3. d4 {[%clk 0:03:03.1]} 3... exd4 {[%clk
0:03:00.1]} 4. Nxd4 {[%clk 0:03:03.5]} 4... Bc5 {[%clk 0:02:59.8]} 5. Nb3 {[%clk
0:03:04.1]} 5... Bb6 {[%clk 0:03:00.1]} 6. Nc3 {[%clk 0:03:05.4]} 6... d6 {[%clk
0:03:01]} 7. Qe2 {[%clk 0:03:04.9]} 7... Nge7 {[%clk 0:03:01.3]} 8. Be3 {[%clk
0:03:05.6]} 8... O-O {[%clk 0:03:01.4]} 9. O-O-O {[%clk 0:03:06.5]} 9... Be6
{[%clk 0:03:00.7]} 10. f4 {[%clk 0:02:50.6]} 10... f5 {[%clk 0:02:58.9]} 11. e5
{[%clk 0:02:45.9]} 11... Nb4 {[%clk 0:02:49]} 12. a3 {[%clk 0:02:40.7]} 12...
Nbd5 {[%clk 0:02:46.7]} 13. Bxb6 {[%clk 0:02:41.2]} 13... axb6 {[%clk
0:02:43.3]} 14. Nxd5 {[%clk 0:02:38.9]} 14... Bxd5 {[%clk 0:02:39.4]} 15. exd6
{[%clk 0:02:38.2]} 15... cxd6 {[%clk 0:02:39.8]} 16. Rxd5 {[%clk 0:02:37.9]}
16... Nxd5 {[%clk 0:02:40.1]} 17. Qe6+ {[%clk 0:02:38.9]} 17... Kh8 {[%clk
0:02:33.4]} 18. Qxd5 {[%clk 0:02:40.8]} 18... Qe7 {[%clk 0:02:34]} 19. Bd3
{[%clk 0:02:38.2]} 19... Qe3+ {[%clk 0:02:34.3]} 20. Kb1 {[%clk 0:02:39.3]}
20... Qxf4 {[%clk 0:02:35.2]} 21. Qxb7 {[%clk 0:02:40.5]} 21... Qe5 {[%clk
0:02:32.4]} 22. Qf3 {[%clk 0:02:35.6]} 22... f4 {[%clk 0:02:32.9]} 23. Rf1
{[%clk 0:02:29.1]} 23... Rae8 {[%clk 0:02:32.1]} 24. Qh3 {[%clk 0:02:26.6]}
24... h6 {[%clk 0:02:27.8]} 25. Nd2 {[%clk 0:02:27.4]} 25... Qf6 {[%clk
0:02:24.9]} 26. Nf3 {[%clk 0:02:19.9]} 26... Re3 {[%clk 0:02:22.9]} 27. Qh5
{[%clk 0:02:20.5]} 27... Rfe8 {[%clk 0:02:13.1]} 28. g4 {[%clk 0:01:43.6]} 28...
fxg3 {[%clk 0:01:59.4]} 29. hxg3 {[%clk 0:01:40.6]} 29... Qe6 {[%clk 0:01:38.3]}
30. Ng5 {[%clk 0:01:19.1]} 30... Qe7 {[%clk 0:00:41.7]} 31. Nf7+ {[%clk
0:01:09.8]} 31... Kg8 {[%clk 0:00:39]} 32. Bc4 {[%clk 0:00:49.2]} 32... Re1+
{[%clk 0:00:24.3]} 33. Rxe1 {[%clk 0:00:46.5]} 33... Qxe1+ {[%clk 0:00:26.2]}
34. Ka2 {[%clk 0:00:47.4]} 34... Kf8 {[%clk 0:00:13.2]} 35. Ne5 {[%clk
0:00:44.2]} 35... Re7 {[%clk 0:00:09.9]} 36. Ng6+ {[%clk 0:00:42.4]} 36... Ke8
{[%clk 0:00:10.6]} 37. Nxe7+ {[%clk 0:00:43.5]} 37... Kxe7 {[%clk 0:00:11.7]}
38. Qf7+ {[%clk 0:00:43.9]} 38... Kd8 {[%clk 0:00:12.5]} 39. Qxg7 {[%clk
0:00:38.7]} 39... Qe4 {[%clk 0:00:11.4]} 40. Qg8+ {[%clk 0:00:36]} 40... Kc7
{[%clk 0:00:11.7]} 41. Qf7+ {[%clk 0:00:36.7]} 41... Kb8 {[%clk 0:00:12.2]} 42.
Qd5 {[%clk 0:00:37.7]} 42... Qe7 {[%clk 0:00:12.1]} 43. Bd3 {[%clk 0:00:37.2]}
43... Kc7 {[%clk 0:00:10.1]} 44. Be4 {[%clk 0:00:38.4]} 44... Qf6 {[%clk
0:00:04.3]} 45. Qc6+ {[%clk 0:00:38.1]} 45... Kd8 {[%clk 0:00:04.6]} 46. Qxb6+
{[%clk 0:00:40]} 46... Ke7 {[%clk 0:00:05.5]} 47. Qb7+ {[%clk 0:00:40.9]} 47...
Ke8 {[%clk 0:00:06.1]} 48. Qc8+ {[%clk 0:00:40.9]} 48... Ke7 {[%clk 0:00:06.8]}
49. Qc7+ {[%clk 0:00:41.2]} 49... Ke8 {[%clk 0:00:07.5]} 50. Qc4 {[%clk
0:00:39.5]} 50... Ke7 {[%clk 0:00:07.3]} 51. Bd5 {[%clk 0:00:37.6]} 51... Kd7
{[%clk 0:00:05.9]} 52. a4 {[%clk 0:00:34.6]} 52... Qe5 {[%clk 0:00:06.2]} 53. a5
{[%clk 0:00:34.2]} 53... Qe1 {[%clk 0:00:06.6]} 54. Qa4+ {[%clk 0:00:33]} 54...
Ke7 {[%clk 0:00:06.4]} 55. Qe4+ {[%clk 0:00:31.7]} 55... Qxe4 {[%clk 0:00:04.6]}
56. Bxe4 {[%clk 0:00:32.8]} 56... h5 {[%clk 0:00:03.4]} 57. a6 {[%clk
0:00:33.5]} 57... d5 {[%clk 0:00:04.4]} 58. Bxd5 {[%clk 0:00:34.2]} 58... Kd6
{[%clk 0:00:06]} 59. c4 {[%clk 0:00:35.6]} 59... Kc7 {[%clk 0:00:06.6]} 60. a7
{[%clk 0:00:36.9]} 60... h4 {[%clk 0:00:06.5]} 61. a8=Q {[%clk 0:00:37.9]} 61...
hxg3 {[%clk 0:00:06.4]} 62. Qc6+ {[%clk 0:00:38.9]} 62... Kd8 {[%clk 0:00:06.2]}
63. Qd6+ {[%clk 0:00:39.6]} 63... Ke8 {[%clk 0:00:06.1]} 64. Qc7 {[%clk
0:00:40.4]} 64... g2 {[%clk 0:00:06.6]} 65. Be6 {[%clk 0:00:40.3]} 65... g1=Q
{[%clk 0:00:04.8]} 66. Qd7+ {[%clk 0:00:40]} 66... Kf8 {[%clk 0:00:05.6]} 67.
Qf7# {[%clk 0:00:41.9]} 1-0